[Event "Shanghai COITCT 2019"]
[Site "Shanghai"]
[Date "2019.09.15"]
[Round "1.1"]
[White "Kovalev, Vladislav"]
[Black "Karimov, Alisher"]
[Result "1-0"]
[ECO "C67"]
[WhiteElo "2661"]
[BlackElo "2251"]
[Annotator "ChessBase"]
[PlyCount "135"]
[EventDate "2019.09.15"]
[EventType "team-tourn"]
[EventCountry "CHN"]
[SourceTitle "playchess.com"]
[Source "ChessBase"]
[SourceQuality "1"]
[TimeControl "1500+10"]

1. e4 {[%emt 0:00:00]} e5 {[%emt 0:00:00]} 2. Nf3 {[%emt 0:00:00]} Nc6 {[%emt 0:00:03]} 3. Bb5 {[%emt 0:00:08]} Nf6 {[%emt 0:00:03]} 4. O-O {[%emt 0:00:04]} Nxe4 {[%emt 0:00:03]} 5. Re1 {[%emt 0:00:01]} Nd6 {[%emt 0:00:03]} 6. Nxe5 {[%emt 0:00:01]} Be7 {[%emt 0:00:03]} 7. Bf1 {[%emt 0:00:02]} Nxe5 {[%emt 0:00:11]} 8. Rxe5 {[%emt 0:00:02]} O-O {[%emt 0:00:03]} 9. d4 {[%emt 0:00:01]} Bf6 {[%emt 0:00:07]} 10. Re1 {[%emt 0:00:05]} Re8 {[%emt 0:00:01]} 11. c3 {[%emt 0:00:05]} Rxe1 {[%emt 0:00:56]} 12. Qxe1 {[%emt 0:00:02]} Qe8 {[%emt 0:00:01]} 13. Qxe8+ {[%emt 0:00:07]} Nxe8 {[%emt 0:00:01]} 14. a4 {[%emt 0:00:00]} d5 {[%emt 0:01:16]} 15. a5 {[%emt 0:00:02]} a6 {[%emt 0:00:01]} 16. Bf4 {[%emt 0:00:12]} Be7 {[%emt 0:00:52]} 17. Nd2 {[%emt 0:00:10]} Bd6 {[%emt 0:00:14]} 18. Bxd6 {[%emt 0:00:04]} Nxd6 {[%emt 0:00:02]} 19. Nb3 {[%emt 0:00:03]} Bd7 {[%emt 0:07:42]} 20. Be2 {[%emt 0:08:11]} Re8 {[%emt 0:01:38]} 21. Bf3 {[%emt 0:00:04]} Bc6 {[%emt 0:00:01]} 22. Nd2 {[%emt 0:01:25]} Kf8 {[%emt 0:01:27]} 23. g3 {[%emt 0:00:19]} Re7 {[%emt 0:01:23]} 24. h4 {[%emt 0:02:01]} g6 {[%emt 0:00:56]} 25. h5 {[%emt 0:01:48]} Kg7 {[%emt 0:00:27]} 26. Kg2 {[%emt 0:00:07]} g5 {[%emt 0:00:45]} 27. Nf1 {[%emt 0:00:12]} Nf5 {[%emt 0:00:40]} 28. Kg1 {[%emt 0:04:47]} Kf6 {[%emt 0:02:41]} 29. Rc1 {[%emt 0:00:33]} Re8 {[%emt 0:01:47]} 30. b3 {[%emt 0:00:39]} Ke7 {[%emt 0:00:40]} 31. Be2 {[%emt 0:01:38]} Bb5 {[%emt 0:02:56]} 32. Bg4 {[%emt 0:00:10]} Nh6 {[%emt 0:00:25]} 33. Bf3 {[%emt 0:05:43]} Bxf1 {[%emt 0:01:26]} 34. Kxf1 {[%emt 0:00:24]} Kd6 {[%emt 0:00:22]} 35. c4 {[%emt 0:00:09]} dxc4 {[%emt 0:00:32]} 36. bxc4 {[%emt 0:00:07]} c6 {[%emt 0:00:01]} 37. Rb1 {[%emt 0:00:42]} Re7 {[%emt 0:00:03]} 38. c5+ {[%emt 0:00:14]} Kc7 {[%emt 0:00:05]} 39. d5 {[%emt 0:00:01]} cxd5 {[%emt 0:00:31]} 40. Bxd5 {[%emt 0:00:01]} Kc8 {[%emt 0:00:50]} 41. Rb6 {[%emt 0:00:02]} Ng4 {[%emt 0:00:14]} 42. c6 {[%emt 0:00:44]} bxc6 {[%emt 0:00:04]} 43. Rxc6+ {[%emt 0:00:09]} Rc7 {[%emt 0:00:15]} 44. Rxa6 {[%emt 0:00:19]} Rc2 {[%emt 0:00:15]} 45. Rc6+ {[%emt 0:00:16]} Rxc6 {[%emt 0:00:03]} 46. Bxc6 {[%emt 0:00:00]} Nf6 {[%emt 0:00:04]} 47. Bf3 {[%emt 0:00:29]} h6 {[%emt 0:00:02]} 48. Be2 {[%emt 0:00:07]} Kb7 {[%emt 0:00:09]} 49. Bc4 {[%emt 0:00:09]} Ka7 {[%emt 0:00:09]} 50. Kg2 {[%emt 0:00:04]} Ng4 {[%emt 0:00:29]} 51. Be2 {[%emt 0:00:06]} Ne5 {[%emt 0:00:03]} 52. Bb5 {[%emt 0:00:08]} f5 {[%emt 0:00:12]} 53. f4 {[%emt 0:00:03]} gxf4 {[%emt 0:00:20]} 54. gxf4 {[%emt 0:00:01]} Nf7 {[%emt 0:00:06]} 55. Kf3 {[%emt 0:00:14]} Nd6 {[%emt 0:00:05]} 56. Bd3 {[%emt 0:00:00]} Nb7 {[%emt 0:00:09]} 57. a6 {[%emt 0:00:23]} Nc5 {[%emt 0:00:00]} 58. Be2 {[%emt 0:00:18]} Kb6 {[%emt 0:00:26]} 59. Ke3 {[%emt 0:00:03]} Ne6 {[%emt 0:00:15]} 60. Bc4 {[%emt 0:00:00]} Nc5 {[%emt 0:00:11]} 61. Kd4 {[%emt 0:00:05]} Nd7 {[%emt 0:00:01]} 62. Be2 {[%emt 0:00:08]} Kc6 {[%emt 0:00:09]} 63. Bd3 {[%emt 0:00:29]} Nf6 {[%emt 0:00:04]} 64. Bb5+ {[%emt 0:00:16]} Kb6 {[%emt 0:00:12]} 65. Be2 {[%emt 0:00:01]} Nd7 {[%emt 0:00:23]} 66. Kd5 {[%emt 0:00:06]} Nc5 {[%emt 0:00:11]} 67. a7 {[%emt 0:00:12]} Na6 {[%emt 0:00:07]} 68. Bxa6 {[%emt 0:00:04]} 1-0

[Event "Shanghai COITCT 2019"]
[Site "Shanghai"]
[Date "2019.09.15"]
[Round "1.2"]
[White "Kabilov, Amin"]
[Black "Zhigalko, Sergei"]
[Result "1/2-1/2"]
[ECO "E12"]
[WhiteElo "2199"]
[BlackElo "2574"]
[Annotator "ChessBase"]
[PlyCount "67"]
[EventDate "2019.09.15"]
[EventType "team-tourn"]
[EventCountry "CHN"]
[SourceTitle "playchess.com"]
[Source "ChessBase"]
[SourceQuality "1"]
[TimeControl "1500+10"]

1. d4 {[%emt 0:00:00]} Nf6 {[%emt 0:00:00]} 2. Nf3 {[%emt 0:00:01]} e6 {[%emt 0:00:00]} 3. c4 {[%emt 0:00:04]} b6 {[%emt 0:00:00]} 4. a3 {[%emt 0:00:43]} Ba6 {[%emt 0:00:03]} 5. e3 {[%emt 0:00:44]} d5 {[%emt 0:00:53]} 6. Nbd2 {[%emt 0:01:55]} Be7 {[%emt 0:00:52]} 7. b4 {[%emt 0:01:40]} O-O {[%emt 0:00:27]} 8. Be2 {[%emt 0:00:51]} c5 {[%emt 0:00:33]} 9. dxc5 {[%emt 0:00:41]} bxc5 {[%emt 0:00:02]} 10. b5 {[%emt 0:00:02]} Bb7 {[%emt 0:00:02]} 11. O-O {[%emt 0:00:07]} Nbd7 {[%emt 0:02:47]} 12. Bb2 {[%emt 0:00:43]} Qc7 {[%emt 0:00:15]} 13. Qc2 {[%emt 0:00:30]} Rfd8 {[%emt 0:00:12]} 14. Rfd1 {[%emt 0:00:54]} Rac8 {[%emt 0:05:18]} 15. Bc3 {[%emt 0:02:27]} Bd6 {[%emt 0:00:50]} 16. h3 {[%emt 0:01:31]} h6 {[%emt 0:00:09]} 17. a4 {[%emt 0:00:50]} Qb8 {[%emt 0:00:46]} 18. Qb2 {[%emt 0:00:45]} Ne8 {[%emt 0:04:39]} 19. a5 {[%emt 0:01:56]} Ba8 {[%emt 0:00:07]} 20. Rab1 {[%emt 0:03:15]} Nef6 {[%emt 0:00:20]} 21. Qa1 {[%emt 0:00:40]} Re8 {[%emt 0:00:16]} 22. Qb2 {[%emt 0:00:28]} Bb7 {[%emt 0:00:12]} 23. Qa1 {[%emt 0:00:20]} Qc7 {[%emt 0:01:50]} 24. Rbc1 {[%emt 0:02:08]} Qb8 {[%emt 0:00:20]} 25. Rb1 {[%emt 0:00:02]} Qc7 {[%emt 0:00:56]} 26. Bf1 {[%emt 0:00:45]} Rcd8 {[%emt 0:00:26]} 27. Be2 {[%emt 0:00:39]} Qb8 {[%emt 0:00:30]} 28. Qb2 {[%emt 0:00:17]} Qc7 {[%emt 0:00:50]} 29. Qa1 {[%emt 0:00:04]} Rb8 {[%emt 0:00:49]} 30. Rb3 {[%emt 0:00:21]} Rbc8 {[%emt 0:00:20]} 31. Rbb1 {[%emt 0:00:09]} Qb8 {[%emt 0:00:34]} 32. Qb2 {[%emt 0:00:19]} Red8 {[%emt 0:00:13]} 33. Qa1 {[%emt 0:00:02]} Ne8 {[%emt 0:00:47]} 34. Qb2 {[%emt 0:00:09]} 1/2-1/2

[Event "Shanghai COITCT 2019"]
[Site "Shanghai"]
[Date "2019.09.15"]
[Round "1.3"]
[White "Zarubitski, Viachaslau"]
[Black "Antonova, Nadezhda"]
[Result "1-0"]
[ECO "B51"]
[WhiteElo "2435"]
[BlackElo "1930"]
[Annotator "ChessBase"]
[PlyCount "93"]
[EventDate "2019.09.15"]
[EventType "team-tourn"]
[EventCountry "CHN"]
[SourceTitle "playchess.com"]
[Source "ChessBase"]
[SourceQuality "1"]
[TimeControl "1500+10"]

1. e4 {[%emt 0:00:00]} c5 {[%emt 0:00:00]} 2. Nc3 {[%emt 0:00:00]} Nc6 {[%emt 0:00:10]} 3. Bb5 {[%emt 0:00:00]} d6 {[%emt 0:02:31]} 4. Nf3 {[%emt 0:01:37]} Bd7 {[%emt 0:03:19]} 5. O-O {[%emt 0:00:04]} e6 {[%emt 0:01:34]} 6. d4 {[%emt 0:01:57]} cxd4 {[%emt 0:02:22]} 7. Nxd4 {[%emt 0:00:02]} Be7 {[%emt 0:05:31]} 8. Be3 {[%emt 0:05:06]} Nf6 {[%emt 0:01:15]} 9. Nxc6 {[%emt 0:01:18]} bxc6 {[%emt 0:01:14]} 10. Be2 {[%emt 0:00:31]} Qb8 {[%emt 0:03:20]} 11. b3 {[%emt 0:01:48]} d5 {[%emt 0:01:27]} 12. Qd3 {[%emt 0:01:19]} O-O {[%emt 0:00:50]} 13. f4 {[%emt 0:00:57]} Rd8 {[%emt 0:02:14]} 14. e5 {[%emt 0:00:36]} Ne8 {[%emt 0:00:04]} 15. Na4 {[%emt 0:00:05]} Qb5 {[%emt 0:01:22]} 16. Qd2 {[%emt 0:01:28]} Qb4 {[%emt 0:00:15]} 17. c3 {[%emt 0:00:08]} Qa5 {[%emt 0:00:08]} 18. Qd4 {[%emt 0:01:27]} Nc7 {[%emt 0:00:12]} 19. Nc5 {[%emt 0:03:30]} Nb5 {[%emt 0:00:09]} 20. Bxb5 {[%emt 0:00:22]} Bxc5 {[%emt 0:00:11]} 21. Qxc5 {[%emt 0:00:08]} Qxb5 {[%emt 0:00:04]} 22. Qe7 {[%emt 0:00:54]} Qb7 {[%emt 0:00:14]} 23. Rf3 {[%emt 0:00:20]} Re8 {[%emt 0:00:10]} 24. Qh4 {[%emt 0:00:12]} Bc8 {[%emt 0:00:12]} 25. Rg3 {[%emt 0:01:05]} Qe7 {[%emt 0:00:08]} 26. Qh6 {[%emt 0:00:08]} Qf8 {[%emt 0:00:13]} 27. b4 {[%emt 0:01:35]} Kh8 {[%emt 0:00:04]} 28. Qh5 {[%emt 0:00:01]} Ba6 {[%emt 0:00:09]} 29. Bc5 {[%emt 0:00:17]} Qg8 {[%emt 0:00:11]} 30. Re1 {[%emt 0:00:26]} Bc4 {[%emt 0:00:10]} 31. Bd4 {[%emt 0:01:09]} a5 {[%emt 0:00:13]} 32. f5 {[%emt 0:00:07]} axb4 {[%emt 0:00:11]} 33. cxb4 {[%emt 0:00:55]} Rxa2 {[%emt 0:00:09]} 34. f6 {[%emt 0:00:06]} g6 {[%emt 0:00:05]} 35. Qg5 {[%emt 0:00:06]} Rea8 {[%emt 0:00:16]} 36. Rh3 {[%emt 0:00:26]} Re2 {[%emt 0:00:09]} 37. Rxe2 {[%emt 0:00:29]} Bxe2 {[%emt 0:00:01]} 38. Qh6 {[%emt 0:00:08]} Bc4 {[%emt 0:00:18]} 39. g4 {[%emt 0:00:19]} Be2 {[%emt 0:00:12]} 40. Qg5 {[%emt 0:00:13]} Qf8 {[%emt 0:00:09]} 41. Qh4 {[%emt 0:00:03]} Qg8 {[%emt 0:00:04]} 42. Re3 {[%emt 0:00:12]} Bc4 {[%emt 0:00:07]} 43. Bc5 {[%emt 0:00:19]} Ra1+ {[%emt 0:00:06]} 44. Kg2 {[%emt 0:00:05]} Qa8 {[%emt 0:00:09]} 45. Qh6 {[%emt 0:00:19]} Qg8 {[%emt 0:00:21]} 46. Bf8 {[%emt 0:00:04]} Ra2+ {[%emt 0:00:15]} 47. Kg3 {[%emt 0:00:02]} 1-0

[Event "Shanghai COITCT 2019"]
[Site "Shanghai"]
[Date "2019.09.15"]
[Round "1.4"]
[White "Idani, Pouya"]
[Black "Orozbaev, Eldiar"]
[Result "1-0"]
[ECO "C02"]
[WhiteElo "2586"]
[BlackElo "1908"]
[Annotator "ChessBase"]
[PlyCount "69"]
[EventDate "2019.09.15"]
[EventType "team-tourn"]
[EventCountry "CHN"]
[SourceTitle "playchess.com"]
[Source "ChessBase"]
[SourceQuality "1"]
[TimeControl "1500+10"]

1. e4 {[%emt 0:00:00]} e6 {[%emt 0:00:00]} 2. d4 {[%emt 0:00:00]} d5 {[%emt 0:00:00]} 3. e5 {[%emt 0:00:00]} c5 {[%emt 0:00:01]} 4. c3 Nc6 {[%emt 0:00:00]} 5. Nf3 {[%emt 0:00:00]} Qb6 {[%emt 0:00:00]} 6. a3 {[%emt 0:00:04]} f6 {[%emt 0:00:01]} 7. Bd3 {[%emt 0:00:09]} fxe5 {[%emt 0:00:08]} 8. Nxe5 {[%emt 0:00:38]} Nxe5 {[%emt 0:02:44]} 9. dxe5 {[%emt 0:00:02]} g6 {[%emt 0:00:14]} 10. h4 {[%emt 0:01:47]} c4 {[%emt 0:00:14]} 11. Bc2 {[%emt 0:00:07]} Bg7 {[%emt 0:00:58]} 12. Qe2 {[%emt 0:01:58]} Ne7 {[%emt 0:04:48]} 13. h5 {[%emt 0:01:18]} Qc7 {[%emt 0:00:56]} 14. f4 {[%emt 0:03:25]} Nf5 {[%emt 0:05:06]} 15. Rh3 {[%emt 0:01:11]} gxh5 {[%emt 0:02:10]} 16. Qxh5+ {[%emt 0:00:36]} Qf7 {[%emt 0:00:03]} 17. Qxf7+ {[%emt 0:01:08]} Kxf7 {[%emt 0:00:01]} 18. g4 {[%emt 0:00:02]} Ne7 {[%emt 0:02:24]} 19. Nd2 {[%emt 0:03:10]} Bd7 {[%emt 0:00:24]} 20. Nf3 {[%emt 0:00:01]} h6 {[%emt 0:00:14]} 21. Be3 {[%emt 0:00:22]} Rag8 {[%emt 0:01:09]} 22. Bxa7 {[%emt 0:01:09]} b6 {[%emt 0:02:17]} 23. Bxb6 {[%emt 0:01:51]} Rb8 {[%emt 0:00:02]} 24. Bc5 {[%emt 0:00:58]} Rxb2 {[%emt 0:00:06]} 25. Rh2 {[%emt 0:00:50]} Rhb8 {[%emt 0:01:17]} 26. Bb4 {[%emt 0:00:26]} Ra8 {[%emt 0:01:21]} 27. O-O-O {[%emt 0:01:36]} Rxc2+ {[%emt 0:00:19]} 28. Rxc2 {[%emt 0:00:10]} Ba4 {[%emt 0:00:01]} 29. Nd4 {[%emt 0:00:14]} Bxc2 {[%emt 0:00:02]} 30. Kxc2 {[%emt 0:00:04]} Rg8 {[%emt 0:01:06]} 31. Bxe7 {[%emt 0:01:21]} Kxe7 {[%emt 0:00:01]} 32. Rb1 Bf8 {[%emt 0:01:27]} 33. Rb7+ {[%emt 0:00:06]} Ke8 {[%emt 0:00:01]} 34. Nxe6 {[%emt 0:00:15]} Rxg4 {[%emt 0:00:35]} 35. f5 {[%emt 0:00:59]} 1-0

[Event "Shanghai COITCT 2019"]
[Site "Shanghai"]
[Date "2019.09.15"]
[Round "1.5"]
[White "Zairbek kyzy, Begimai"]
[Black "Darini, Pouria"]
[Result "0-1"]
[ECO "B22"]
[WhiteElo "1989"]
[BlackElo "2428"]
[Annotator "ChessBase"]
[PlyCount "46"]
[EventDate "2019.09.15"]
[EventType "team-tourn"]
[EventCountry "CHN"]
[SourceTitle "playchess.com"]
[Source "ChessBase"]
[SourceQuality "1"]
[TimeControl "1500+10"]

1. e4 {[%emt 0:00:00]} c5 {[%emt 0:00:00]} 2. d4 {[%emt 0:00:00]} cxd4 {[%emt 0:00:00]} 3. c3 {[%emt 0:00:00]} Nf6 {[%emt 0:00:22]} 4. e5 {[%emt 0:00:18]} Nd5 {[%emt 0:00:02]} 5. f4 {[%emt 0:00:24]} e6 {[%emt 0:03:02]} 6. cxd4 {[%emt 0:04:05]} Bb4+ {[%emt 0:00:02]} 7. Bd2 {[%emt 0:00:01]} Qb6 {[%emt 0:00:05]} 8. Ne2 {[%emt 0:00:26]} Nc6 {[%emt 0:02:24]} 9. a3 {[%emt 0:00:45]} Ne3 {[%emt 0:05:25]} 10. Qa4 {[%emt 0:03:48]} Bxd2+ {[%emt 0:01:00]} 11. Nxd2 {[%emt 0:00:01]} Qxb2 {[%emt 0:01:00]} 12. Rb1 {[%emt 0:00:51]} Qc2 {[%emt 0:00:18]} 13. Qb5 {[%emt 0:01:08]} O-O {[%emt 0:01:45]} 14. Rc1 {[%emt 0:03:07]} Nxd4 {[%emt 0:00:57]} 15. Qa5 {[%emt 0:03:47]} Qd3 {[%emt 0:03:35]} 16. Nxd4 {[%emt 0:06:34]} Qxd4 {[%emt 0:00:02]} 17. Qb4 {[%emt 0:00:11]} Qxb4 {[%emt 0:01:20]} 18. axb4 {[%emt 0:00:01]} d6 {[%emt 0:01:31]} 19. exd6 {[%emt 0:00:03]} Rd8 {[%emt 0:00:07]} 20. Kf2 {[%emt 0:01:07]} Nd5 {[%emt 0:01:04]} 21. Rc4 {[%emt 0:00:32]} Rxd6 {[%emt 0:00:09]} 22. h4 {[%emt 0:00:23]} Bd7 {[%emt 0:00:22]} 23. Ne4 {[%emt 0:00:10]} Rb6 {[%emt 0:00:01]} 0-1

[Event "Shanghai COITCT 2019"]
[Site "Shanghai"]
[Date "2019.09.15"]
[Round "1.7"]
[White "Venkatesh, M.R."]
[Black "Xu, Zhihang"]
[Result "0-1"]
[ECO "B23"]
[WhiteElo "2481"]
[BlackElo "2506"]
[Annotator "ChessBase"]
[PlyCount "94"]
[EventDate "2019.09.15"]
[EventType "team-tourn"]
[EventCountry "CHN"]
[SourceTitle "playchess.com"]
[Source "ChessBase"]
[SourceQuality "1"]
[TimeControl "1500+10"]

1. e4 {[%emt 0:00:06]} c5 {[%emt 0:00:00]} 2. Nc3 {[%emt 0:00:07]} Nc6 {[%emt 0:00:00]} 3. Bb5 {[%emt 0:00:07]} Nd4 {[%emt 0:00:15]} 4. Nf3 {[%emt 0:00:07]} Nxb5 {[%emt 0:00:13]} 5. Nxb5 {[%emt 0:00:03]} g6 {[%emt 0:00:08]} 6. d4 {[%emt 0:02:00]} Bg7 {[%emt 0:00:19]} 7. O-O {[%emt 0:02:44]} cxd4 {[%emt 0:01:10]} 8. Nfxd4 {[%emt 0:00:05]} d6 {[%emt 0:00:11]} 9. c4 {[%emt 0:00:27]} Nf6 {[%emt 0:00:18]} 10. Nc3 {[%emt 0:00:07]} O-O {[%emt 0:00:04]} 11. f3 {[%emt 0:00:07]} Bd7 {[%emt 0:00:07]} 12. Be3 {[%emt 0:00:03]} Qa5 {[%emt 0:00:30]} 13. Rc1 {[%emt 0:01:28]} Rfc8 {[%emt 0:00:16]} 14. Nb3 {[%emt 0:01:47]} Qd8 {[%emt 0:01:33]} 15. Qe2 {[%emt 0:02:03]} a6 {[%emt 0:01:26]} 16. a4 {[%emt 0:07:05]} Qe8 {[%emt 0:01:49]} 17. a5 {[%emt 0:00:16]} Be6 {[%emt 0:00:01]} 18. Nd2 {[%emt 0:00:34]} Nd7 {[%emt 0:00:38]} 19. Na4 {[%emt 0:00:58]} Rab8 {[%emt 0:01:38]} 20. b3 {[%emt 0:00:09]} b5 {[%emt 0:01:13]} 21. axb6 {[%emt 0:00:15]} Nc5 {[%emt 0:00:02]} 22. Nxc5 {[%emt 0:03:40]} dxc5 {[%emt 0:00:02]} 23. b4 {[%emt 0:00:01]} cxb4 {[%emt 0:00:08]} 24. c5 {[%emt 0:00:01]} Qa4 {[%emt 0:00:32]} 25. f4 {[%emt 0:00:12]} Bd7 {[%emt 0:00:49]} 26. e5 {[%emt 0:01:24]} Bb5 {[%emt 0:00:21]} 27. Qd1 {[%emt 0:00:02]} Qa3 {[%emt 0:01:06]} 28. Rf3 {[%emt 0:00:04]} Qd3 {[%emt 0:00:44]} 29. Qb3 {[%emt 0:01:06]} Rxb6 {[%emt 0:03:00]} 30. Qxd3 {[%emt 0:02:06]} Bxd3 {[%emt 0:00:02]} 31. cxb6 {[%emt 0:00:01]} Rxc1+ {[%emt 0:00:01]} 32. Kf2 {[%emt 0:00:01]} Rc8 {[%emt 0:00:02]} 33. Bc5 {[%emt 0:01:00]} Rxc5 {[%emt 0:00:23]} 34. Rxd3 {[%emt 0:00:02]} Rb5 {[%emt 0:00:02]} 35. Rd8+ {[%emt 0:00:08]} Bf8 {[%emt 0:00:01]} 36. Nc4 {[%emt 0:00:06]} b3 {[%emt 0:00:09]} 37. Rd2 {[%emt 0:00:25]} e6 {[%emt 0:00:04]} 38. Ke2 {[%emt 0:00:09]} a5 {[%emt 0:00:31]} 39. Kd1 {[%emt 0:00:12]} a4 {[%emt 0:00:02]} 40. Kc1 {[%emt 0:00:05]} a3 {[%emt 0:00:36]} 41. Kb1 {[%emt 0:00:07]} Bc5 {[%emt 0:00:50]} 42. Rd8+ {[%emt 0:00:18]} Kg7 {[%emt 0:00:01]} 43. Rd7 {[%emt 0:00:10]} a2+ {[%emt 0:00:55]} 44. Kb2 {[%emt 0:00:07]} Bxb6 {[%emt 0:00:04]} 45. Rd1 {[%emt 0:00:09]} Bc5 {[%emt 0:00:21]} 46. Kc3 {[%emt 0:00:10]} Bd4+ {[%emt 0:00:12]} 47. Kxd4 {[%emt 0:00:12]} Rd5+ {[%emt 0:00:01]} 0-1

[Event "Shanghai COITCT 2019"]
[Site "Shanghai"]
[Date "2019.09.15"]
[Round "1.8"]
[White "Ma, Zhonghan"]
[Black "Krishna C R G"]
[Result "1/2-1/2"]
[ECO "D12"]
[WhiteElo "2485"]
[BlackElo "2446"]
[Annotator "ChessBase"]
[PlyCount "81"]
[EventDate "2019.09.15"]
[EventType "team-tourn"]
[EventCountry "CHN"]
[SourceTitle "playchess.com"]
[Source "ChessBase"]
[SourceQuality "1"]
[TimeControl "1500+10"]

1. Nf3 {[%emt 0:00:00]} d5 {[%emt 0:00:00]} 2. d4 {[%emt 0:00:00]} Nf6 {[%emt 0:00:00]} 3. c4 {[%emt 0:00:02]} c6 {[%emt 0:00:00]} 4. e3 {[%emt 0:00:28]} Bf5 {[%emt 0:00:00]} 5. cxd5 {[%emt 0:00:21]} cxd5 {[%emt 0:00:00]} 6. Qb3 {[%emt 0:00:02]} Qc7 {[%emt 0:02:43]} 7. Bd2 {[%emt 0:00:03]} Nc6 {[%emt 0:00:36]} 8. Bb5 {[%emt 0:00:43]} e6 {[%emt 0:00:28]} 9. O-O {[%emt 0:00:13]} Bd6 {[%emt 0:00:03]} 10. Bb4 {[%emt 0:00:28]} O-O {[%emt 0:01:01]} 11. Bxc6 {[%emt 0:00:09]} bxc6 {[%emt 0:02:19]} 12. Nbd2 {[%emt 0:00:09]} Bxb4 {[%emt 0:02:26]} 13. Qxb4 {[%emt 0:00:03]} Rab8 {[%emt 0:00:01]} 14. Qa3 {[%emt 0:00:45]} Qb6 {[%emt 0:00:32]} 15. b3 {[%emt 0:00:38]} Rfc8 {[%emt 0:04:23]} 16. Rfc1 {[%emt 0:00:13]} Nd7 {[%emt 0:00:01]} 17. Rc3 {[%emt 0:01:57]} a5 {[%emt 0:02:34]} 18. Rac1 {[%emt 0:00:12]} Rb7 {[%emt 0:00:01]} 19. Qd6 {[%emt 0:02:18]} Rbc7 {[%emt 0:00:02]} 20. Ne5 {[%emt 0:02:24]} Nxe5 {[%emt 0:00:41]} 21. dxe5 {[%emt 0:00:15]} Bg4 {[%emt 0:04:05]} 22. h3 {[%emt 0:01:18]} Be2 {[%emt 0:00:02]} 23. Qc5 {[%emt 0:02:59]} Qa6 {[%emt 0:00:35]} 24. a4 {[%emt 0:00:41]} h6 {[%emt 0:00:03]} 25. Qd4 {[%emt 0:02:35]} Rb7 {[%emt 0:02:45]} 26. Rc5 {[%emt 0:00:01]} Rb4 {[%emt 0:00:01]} 27. Qc3 {[%emt 0:00:02]} Qb6 {[%emt 0:00:18]} 28. Rxc6 {[%emt 0:00:12]} Rxc6 {[%emt 0:00:01]} 29. Qxc6 {[%emt 0:00:02]} Qxc6 {[%emt 0:00:01]} 30. Rxc6 {[%emt 0:00:01]} Bd1 {[%emt 0:00:01]} 31. Rc3 {[%emt 0:00:26]} d4 {[%emt 0:00:01]} 32. Rd3 {[%emt 0:03:24]} dxe3 {[%emt 0:00:02]} 33. fxe3 {[%emt 0:00:09]} Rb8 {[%emt 0:00:18]} 34. Rc3 {[%emt 0:01:29]} Rd8 {[%emt 0:00:03]} 35. Nf3 {[%emt 0:00:18]} Bxf3 {[%emt 0:03:06]} 36. gxf3 {[%emt 0:00:01]} Rd2 {[%emt 0:00:01]} 37. Rc5 {[%emt 0:02:00]} Rd3 {[%emt 0:00:06]} 38. Rxa5 {[%emt 0:00:06]} Rxb3 {[%emt 0:00:03]} 39. Kf2 {[%emt 0:00:01]} Ra3 {[%emt 0:00:22]} 40. Ra7 {[%emt 0:00:03]} g5 {[%emt 0:00:03]} 41. a5 {[%emt 0:01:10]} 1/2-1/2

[Event "Shanghai COITCT 2019"]
[Site "Shanghai"]
[Date "2019.09.15"]
[Round "1.9"]
[White "Kulkarni Bhakti"]
[Black "Mu, Ke"]
[Result "1/2-1/2"]
[ECO "D46"]
[WhiteElo "2429"]
[BlackElo "2414"]
[Annotator "ChessBase"]
[PlyCount "50"]
[EventDate "2019.09.15"]
[EventType "team-tourn"]
[EventCountry "CHN"]
[SourceTitle "playchess.com"]
[Source "ChessBase"]
[SourceQuality "1"]
[TimeControl "1500+10"]

1. d4 {[%emt 0:00:00]} Nf6 {[%emt 0:00:00]} 2. Nf3 {[%emt 0:00:33]} d5 {[%emt 0:00:25]} 3. c4 {[%emt 0:00:18]} c6 {[%emt 0:00:20]} 4. e3 {[%emt 0:00:39]} e6 {[%emt 0:00:10]} 5. Nc3 {[%emt 0:00:10]} Nbd7 {[%emt 0:00:06]} 6. Qc2 {[%emt 0:00:17]} Bd6 {[%emt 0:00:08]} 7. Bd3 {[%emt 0:00:08]} O-O {[%emt 0:00:55]} 8. O-O {[%emt 0:00:18]} dxc4 {[%emt 0:00:07]} 9. Bxc4 {[%emt 0:00:03]} b5 {[%emt 0:00:04]} 10. Bd3 {[%emt 0:00:18]} Bb7 {[%emt 0:00:05]} 11. a3 {[%emt 0:02:02]} Rc8 {[%emt 0:00:35]} 12. b4 {[%emt 0:01:09]} a5 {[%emt 0:03:28]} 13. Rb1 {[%emt 0:00:22]} axb4 {[%emt 0:03:29]} 14. axb4 {[%emt 0:00:02]} c5 {[%emt 0:00:02]} 15. bxc5 {[%emt 0:01:53]} Bxf3 {[%emt 0:00:04]} 16. gxf3 {[%emt 0:02:08]} Nxc5 {[%emt 0:00:14]} 17. dxc5 {[%emt 0:01:21]} Rxc5 {[%emt 0:00:08]} 18. Rxb5 {[%emt 0:01:13]} Nd5 {[%emt 0:00:24]} 19. Rxc5 {[%emt 0:01:51]} Qg5+ {[%emt 0:00:11]} 20. Kh1 {[%emt 0:00:03]} Qh5 {[%emt 0:00:27]} 21. f4 {[%emt 0:00:18]} Qf3+ {[%emt 0:00:35]} 22. Kg1 {[%emt 0:00:02]} Qg4+ {[%emt 0:00:23]} 23. Kh1 {[%emt 0:00:01]} Qf3+ {[%emt 0:00:10]} 24. Kg1 {[%emt 0:00:02]} Qg4+ {[%emt 0:00:20]} 25. Kh1 {[%emt 0:00:02]} Qf3+ {[%emt 0:00:10]} 1/2-1/2

[Event "Shanghai COITCT 2019"]
[Site "Shanghai"]
[Date "2019.09.15"]
[Round "1.10"]
[White "Nigmatov, Ortik"]
[Black "Zvjaginsev, Vadim"]
[Result "1/2-1/2"]
[ECO "C66"]
[WhiteElo "2482"]
[BlackElo "2644"]
[Annotator "ChessBase"]
[PlyCount "38"]
[EventDate "2019.09.15"]
[EventType "team-tourn"]
[EventCountry "CHN"]
[SourceTitle "playchess.com"]
[Source "ChessBase"]
[SourceQuality "1"]
[TimeControl "1500+10"]

1. e4 {[%emt 0:00:00]} e5 {[%emt 0:00:00]} 2. Nf3 {[%emt 0:00:00]} Nc6 {[%emt 0:00:02]} 3. Bb5 {[%emt 0:00:29]} Nf6 {[%emt 0:00:11]} 4. Bxc6 {[%emt 0:00:17]} bxc6 {[%emt 0:01:43]} 5. O-O {[%emt 0:01:02]} d6 {[%emt 0:02:20]} 6. d4 {[%emt 0:00:32]} exd4 {[%emt 0:01:21]} 7. Qxd4 {[%emt 0:02:24]} c5 {[%emt 0:02:05]} 8. Qd3 {[%emt 0:00:11]} Be7 {[%emt 0:01:56]} 9. e5 {[%emt 0:00:41]} dxe5 {[%emt 0:00:07]} 10. Qxd8+ {[%emt 0:00:07]} Bxd8 {[%emt 0:00:04]} 11. Nxe5 {[%emt 0:00:02]} O-O {[%emt 0:01:50]} 12. Nc3 {[%emt 0:02:52]} Re8 {[%emt 0:04:26]} 13. Nc6 {[%emt 0:06:45]} Bf5 {[%emt 0:01:42]} 14. Be3 {[%emt 0:00:28]} Bxc2 {[%emt 0:00:16]} 15. Bxc5 {[%emt 0:02:07]} Ne4 {[%emt 0:01:02]} 16. Rfc1 {[%emt 0:06:24]} Bd3 {[%emt 0:00:14]} 17. Nxe4 {[%emt 0:01:00]} Bxe4 {[%emt 0:00:09]} 18. Nxd8 {[%emt 0:01:14]} Rexd8 {[%emt 0:00:06]} 19. Be3 {[%emt 0:00:04]} c6 {[%emt 0:00:27]} 1/2-1/2